[Event "Prague Festival Open 2022"]
[Site "Prague"]
[Date "2022.06.12"]
[Round "4.7"]
[White "Vishal Choudary B"]
[Black "Sedlak, Nikola"]
[Result "0-1"]
[ECO "B15"]
[WhiteElo "2101"]
[BlackElo "2476"]
[Annotator "TA"]
[PlyCount "80"]
[EventDate "2022.06.10"]
[EventType "swiss"]
[EventCountry "CZE"]
[SourceTitle "playchess.com"]
[Source "ChessBase"]
[SourceQuality "1"]
[TimeControl "40/5400+30:1800+30"]

{[%evp 9,80,29,29,19,44,45,51,45,44,36,48,35,39,24,26,5,18,13,26,0,24,46,29,24,23,18,6,-12,0,0,6,0,0,1,0,-66,-54,-87,-92,-115,-95,-106,-92,-106,-108,-120,-110,-218,-225,-220,-219,-227,-93,-89,-92,-420,-387,-433,-409,-671,-656,-29973,-29974,-5313,-5306,-29994,-29995,-29995,-29996,-29996,-29988,-29997,-29998]} 1. e4 {[%emt 0:00:03] Gormally,D} c6 {[%emt 0:02:13]} 2. d4 {[%emt 0:00:50]} d5 {[%emt 0:00:14]} 3. Nc3 {[%emt 0:00:18]} dxe4 {[%emt 0:01:47]} 4. Nxe4 {[%emt 0:00:17]} Nf6 {[%emt 0:00:18]} 5. Nxf6+ {[%emt 0:01:45]} exf6 {[%emt 0:00:11]} 6. c3 {[%emt 0:00:55][%cal Bc2c3,Bc3c4][%mdl 32] B15: Caro-Kann: 3 Nc3: 3...g6 and 3...dxe4 4 Nxe4 Nf6 5 Nxf6+ exf6.} Qd5 {[%emt 0:02:10]} 7. Nf3 {[%emt 0:03:23]} Bd6 {[%emt 0:04:03]} 8. Be2 {[%emt 0:05:52] [#] White is slightly better.} Bc7 $146 {[%emt 0:01:51]} ({Predecessor:} 8... O-O 9. O-O Bc7 10. h3 Bf5 11. Re1 Nd7 12. Nh4 Be4 13. g3 Rfe8 14. c4 Qa5 {1-0 (45) Hou,Y (2673)-Jobava,B (2727) Wijk aan Zee 2015 CBM 165 [Gormally,D]}) 9. c4 {[%emt 0:06:01]} Qd6 {[%emt 0:01:04]} 10. O-O {[%emt 0:02:45]} O-O {[%emt 0:04:01]} 11. h3 {[%emt 0:04:27]} Bf5 {[%emt 0:03:17]} 12. Be3 {[%emt 0:04:15]} Be4 {[%emt 0:03:04]} 13. c5 {[%emt 0:01:20]} (13. g3 {is interesting.} Re8 14. Re1 Qd7 15. Nd2) 13... Qd8 {[%emt 0:02:06]} 14. b4 {[%emt 0:00:53]} Nd7 {[%emt 0:00:56]} 15. Nd2 {[%emt 0:02:14]} (15. Bc4 {seems wilder.} f5 16. Ng5 Nf6 17. Nxe4 Nxe4 18. f3) 15... Bg6 {[%emt 0:03:10]} 16. b5 {[%emt 0:02:10]} f5 {[%emt 0:00:07] Threatens to win with ...f4.} 17. bxc6 {[%emt 0:05:26]} bxc6 {[%emt 0:00:05]} 18. Nb3 {[%emt 0:03:27]} Nf6 {[%emt 0:02:59]} 19. Bg5 {[%emt 0:02:37]} h6 {[%emt 0:00:07]} 20. Bh4 {[%emt 0:01:35]} Bh7 $1 {[%emt 0:00:52]} 21. Bxf6 {[%emt 0:11:16]} Qxf6 {[%emt 0:00:12]} 22. d5 {[%emt 0:00:34]} ({White should try} 22. Ba6 $11) 22... cxd5 $15 {[%emt 0:00:30]} 23. Qxd5 {[%emt 0:00:08]} Rad8 {[%emt 0:01:13]} 24. Qc4 {[%emt 0:04:21]} Qe5 {[%emt 0:01:24][%csl Gc7][%cal Re5h2]} 25. f4 {[%emt 0:01:29] [#]} Qe3+ $40 {[%emt 0:00:27][%mdl 128] Black wants a kill.} 26. Kh1 {[%emt 0:00:13]} g5 {[%emt 0:05:39]} 27. Rf3 {[%emt 0:14:38]} Qe4 {[%emt 0:01:05] Black is more active.} 28. fxg5 {[%emt 0:16:45] [#]} (28. Rc1 $17) 28... Qe5 $1 $19 {[%emt 0:00:52][%csl Gc7][%cal Re5h2]} 29. g3 {[%emt 0:02:25]} hxg5 {[%emt 0:00:08] White must now prevent ...Bg6.} 30. Raf1 {[%emt 0:01:29]} f4 {[%emt 0:07:06]} (30... Rfe8 $19 {has better winning chances.} 31. R1f2 Bg6) 31. gxf4 $17 {[%emt 0:00:56]} gxf4 {[%emt 0:00:05]} 32. Bd3 {[%emt 0:00:47][%mdl 8192] Inhibits Be4. This costs White the game.} (32. Rxf4 $17 {is tougher.} Kh8 33. R1f2) 32... Rxd3 $19 {[%emt 0:01:29]} 33. Rxd3 {[%emt 0:00:17]} (33. Rg1+ Kh8 34. Rg4 Rxf3 35. Kg2 Rg3+ 36. Kf1 Bd3+) 33... Be4+ {[%emt 0:03:17]} 34. Rdf3 {[%emt 0:00:39]} (34. Rff3 $142 Re8 35. Qd4) 34... Rd8 {[%emt 0:01:58]} 35. Kg1 {[%emt 0:00:55]} Bxf3 {[%emt 0:02:15]} 36. Rxf3 {[%emt 0:00:05]} Rd1+ {[%emt 0:00:22]} 37. Rf1 {[%emt 0:00:55]} Qe3+ {[%emt 0:00:15] Black mates.} 38. Kh1 {[%emt 0:00:27]} Qxh3+ {[%emt 0:00:14]} 39. Kg1 {[%emt 0:00:05]} Qg3+ {[%emt 0:00:08]} 40. Kh1 {[%emt 0:00:08] [#]} f3 $1 {[%emt 0:00:16] Weighted Error Value: White=0.68/Black=0.05 (flawless)} 0-1

[Event "Prague Festival Open 2022"]
[Site "Prague"]
[Date "2022.06.12"]
[Round "4.8"]
[White "Simek, Petr"]
[Black "Wagner, Dennis"]
[Result "1/2-1/2"]
[ECO "E04"]
[WhiteElo "2332"]
[BlackElo "2586"]
[Annotator "TA"]
[PlyCount "75"]
[EventDate "2022.06.10"]
[EventType "swiss"]
[EventCountry "CZE"]
[SourceTitle "playchess.com"]
[Source "ChessBase"]
[SourceQuality "1"]
[TimeControl "40/5400+30:1800+30"]

{[%evp 9,75,26,22,10,12,0,0,9,22,10,12,9,11,0,0,0,0,0,0,0,0,0,11,0,5,12,41,19,19,0,0,7,15,0,14,0,15,-7,0,0,6,0,0,0,34,0,11,-15,-32,-13,-32,-24,-14,-16,0,1,98,32,75,0,0,0,0,0,0,0,0,0]} 1. d4 {[%emt 0:06:06]} Nf6 {[%emt 0:00:05]} 2. c4 {[%emt 0:00:05]} e6 {[%emt 0:00:10]} 3. Nf3 {[%emt 0:00:05]} d5 {[%emt 0:00:04][%cal Bd7d5,Bd5c4][%mdl 32]} 4. g3 {[%emt 0:00:12]} dxc4 {[%emt 0:00:04]} 5. Bg2 {[%emt 0:00:10]} c6 {[%emt 0:00:03]} 6. a4 {[%emt 0:01:34] E04: Open Catalan: 5 Nf3.} Bb4+ {[%emt 0:00:10]} 7. Bd2 {[%emt 0:01:08]} a5 {[%emt 0:00:05]} 8. Qc2 {[%emt 0:01:01]} O-O {[%emt 0:02:34]} 9. Qxc4 {[%emt 0:12:18]} Bxd2+ {[%emt 0:00:30]} 10. Nbxd2 {[%emt 0:00:31]} b6 {[%emt 0:00:07]} 11. Qc2 {[%emt 0:03:03]} Ba6 {[%emt 0:05:52] [#]} 12. Nc4 $146 {[%emt 0:10:08]} ({Predecessor:} 12. Ne4 Nxe4 13. Qxe4 Nd7 14. O-O Rc8 15. Rfd1 Qe7 16. Qe3 Rfd8 17. Ne5 Nxe5 18. dxe5 {½-½ (52) Andreikin,D (2724)-Xiong,J (2686) Chess.com INT 2022}) 12... Nd5 {[%emt 0:00:56]} 13. O-O {[%emt 0:02:37]} Nb4 {[%emt 0:00:04]} 14. Qc3 {[%emt 0:04:34]} Nd7 {[%emt 0:00:08][%cal Bb8d7,Bd7f6,Bf6d5][%mdl 32]} 15. Rfd1 {[%emt 0:03:21]} Qc7 {[%emt 0:04:29]} 16. e4 {[%emt 0:05:32][%cal Be2e4,Be4e5][%mdl 32]} Rac8 {[%emt 0:07:01]} (16... Bxc4 $5 17. Qxc4 Rfd8 $11) 17. b3 {[%emt 0:06:07]} Nf6 {[%emt 0:10:25]} 18. e5 {[%emt 0:06:16]} Nfd5 {[%emt 0:00:10]} 19. Qd2 {[%emt 0:00:26]} Rcd8 {[%emt 0:01:45]} 20. Nd6 {[%emt 0:05:08]} h6 {[%emt 0:00:17]} 21. Rac1 {[%emt 0:07:37]} Rd7 {[%emt 0:00:47]} 22. h4 {[%emt 0:01:08]} Bd3 {[%emt 0:05:13]} 23. Bh3 {[%emt 0:04:41][%cal Bg2h3,Bh3g4,Bg4e2,Be2f3][%mdl 32]} Rfd8 {[%emt 0:05:18]} 24. h5 {[%emt 0:01:31]} Qa7 {[%emt 0:03:20]} 25. Nh4 {[%emt 0:02:35]} Qa6 {[%emt 0:02:12]} 26. Bg4 {[%emt 0:01:44]} Bh7 {[%emt 0:10:29]} 27. Be2 {[%emt 0:07:10]} Qa7 {[%emt 0:00:02]} 28. g4 {[%emt 0:00:25]} Rxd6 {[%emt 0:02:47]} 29. exd6 {[%emt 0:00:05]} Rxd6 {[%emt 0:00:06]} 30. Nf3 {[%emt 0:02:30][%cal Bh4f3,Bf3e5,Be5c4][%mdl 32]} Qe7 {[%emt 0:00:39][%mdl 1024] Black has compensation.} 31. Ne5 {[%emt 0:05:32]} Qf6 {[%emt 0:04:03]} 32. Bf3 {[%emt 0:00:29]} Kf8 {[%emt 0:19:59]} (32... Nf4 $11 {remains equal.}) 33. Kg2 {[%emt 0:00:40]} ({White should try} 33. Bxd5 $16 Rxd5 34. Rc3 (34. Nxc6 Nxc6 35. Rxc6 Qf3 $17)) 33... Qh4 {[%emt 0:11:51]} 34. Rh1 {[%emt 0:00:23]} (34. Bxd5 $16 exd5 35. Qf4) 34... Qd8 $11 {[%emt 0:03:56] The position is equal.} 35. Nc4 {[%emt 0:00:36]} Rd7 {[%emt 0:00:56]} 36. Ne5 {[%emt 0:00:04][%csl LRc6,LRd7]} Rd6 {[%emt 0:00:36]} 37. Nc4 {[%emt 0:00:04]} Rd7 {[%emt 0:00:27] White must now prevent ...Nd3.} 38. Ne5 {[%emt 0:00:06][%csl LRc6,LRd7] Against Nd3.  Weighted Error Value: White=0.11 (very precise) /Black=0.12 (very precise)} 1/2-1/2

[Event "Prague Festival Open 2022"]
[Site "Prague"]
[Date "2022.06.12"]
[Round "4.9"]
[White "Huzman, Alexander"]
[Black "Costa, Leonardo"]
[Result "1-0"]
[ECO "E05"]
[WhiteElo "2541"]
[BlackElo "2322"]
[Annotator "TA"]
[PlyCount "89"]
[EventDate "2022.06.10"]
[EventType "swiss"]
[EventCountry "CZE"]
[SourceTitle "playchess.com"]
[Source "ChessBase"]
[SourceQuality "1"]
[TimeControl "40/5400+30:1800+30"]

{[%evp 18,89,17,21,11,0,14,12,16,6,14,0,15,8,28,29,29,32,42,42,72,68,75,62,79,89,55,24,144,66,62,47,83,2,4,0,0,0,0,0,0,0,8,8,77,70,96,75,185,187,370,354,490,514,843,757,801,770,6307,6307,29970,29974,29975,29974,29973,29963,29984,29977,29977,29978,29977,29977,29977,29978]} 1. Nf3 {[%emt 0:00:03]} Nf6 {[%emt 0:00:09]} 2. c4 {[%emt 0:00:18]} e6 {[%emt 0:00:10]} 3. d4 {[%emt 0:00:21]} d5 {[%emt 0:00:08]} 4. g3 {[%emt 0:00:05]} Be7 {[%emt 0:00:06]} 5. Bg2 {[%emt 0:00:07]} O-O {[%emt 0:00:05]} 6. O-O {[%emt 0:00:03]} dxc4 {[%emt 0:00:06]} 7. Qc2 {[%emt 0:00:05]} a6 {[%emt 0:00:03]} 8. a4 {[%emt 0:00:17]} Bd7 {[%emt 0:00:05]} 9. Qxc4 {[%emt 0:00:07]} Bc6 {[%emt 0:00:05]} 10. Bf4 {[%emt 0:00:05]} Bd6 {[%emt 0:00:04] E05: Open Catalan: 5 Nf3 Be7.} 11. Qc1 {[%emt 0:00:18]} Nbd7 {[%emt 0:00:04]} 12. Nc3 {[%emt 0:00:18]} Rb8 {[%emt 0:00:22] The position is equal.} 13. Re1 {[%emt 0:09:15]} b5 {[%emt 0:00:07] [#]} 14. Rd1 $146 {[%emt 0:10:51]} ({Predecessor:} 14. axb5 axb5 15. e4 b4 16. e5 bxc3 17. bxc3 Be7 {½-½ (17) Naniwadekar,M (2017)-Das,A (2362) ICCF email 2020}) 14... b4 {[%emt 0:11:05]} 15. Nb1 {[%emt 0:00:19][%cal Bc3b1,Bb1d2,Bd2c4][%mdl 32]} Bxf3 {[%emt 0:19:57]} 16. Bxf3 {[%emt 0:00:28]} Qe7 {[%emt 0:00:07]} 17. a5 {[%emt 0:10:00]} Bxf4 {[%emt 0:09:54]} 18. Qxf4 {[%emt 0:02:15]} c5 {[%emt 0:00:06]} 19. Nd2 {[%emt 0:02:19]} Rfc8 {[%emt 0:12:01]} 20. Rac1 {[%emt 0:02:16]} e5 {[%emt 0:03:11]} 21. dxe5 {[%emt 0:00:46] White is more active.} Nxe5 {[%emt 0:01:32]} 22. Nc4 {[%emt 0:05:55]} Nxf3+ {[%emt 0:01:46]} (22... Nxc4 $11 23. Rxc4 Rb5) 23. Qxf3 {[%emt 0:06:34]} (23. exf3 $16 {Hoping for Rd6.} Rd8 24. Kg2) 23... Rd8 $14 {[%emt 0:02:13] Inhibits Rd6.} 24. Qe3 {[%emt 0:01:25]} Kf8 {[%emt 0:22:11]} 25. Qxe7+ {[%emt 0:02:48]} ({White should play} 25. f3 $16) 25... Kxe7 $11 {[%emt 0:00:04]} 26. f3 {[%emt 0:00:04]} Rxd1+ {[%emt 0:08:19]} 27. Rxd1 {[%emt 0:00:29] Rd6 is the strong threat.} Rd8 {[%emt 0:01:09] Inhibits Rd6.} 28. Rxd8 {[%emt 0:10:51]} Kxd8 {[%emt 0:00:03][%mdl 4096] Endgame KN-KN} 29. Kf2 {[%emt 0:00:34]} Ke7 {[%emt 0:02:17]} 30. e4 {[%emt 0:00:43]} Nd7 {[%emt 0:00:35]} (30... Ne8 $1 $11 {keeps the balance.}) 31. Ke3 {[%emt 0:00:31]} f6 {[%emt 0:00:48]} 32. f4 {[%emt 0:01:33] And now Kd3 would win.} Ke6 {[%emt 0:03:39] [#]} (32... Nf8 $16) 33. Kd3 $1 $18 {[%emt 0:01:59]} h6 $2 {[%emt 0:02:05] [#]} (33... Nb8 34. Nb6 g5) 34. Ne3 $1 {[%emt 0:01:33]} h5 {[%emt 0:00:53]} 35. Kc4 {[%emt 0:01:14]} g6 {[%emt 0:00:44]} (35... g5 $142 36. Nd5 b3 37. Nc7+ Kd6) 36. Nd5 {[%emt 0:01:36]} g5 {[%emt 0:00:48]} 37. Nb6 {[%emt 0:01:28]} gxf4 {[%emt 0:00:21]} 38. Nxd7 {[%emt 0:02:53]} Kxd7 {[%emt 0:00:16]} 39. gxf4 {[%emt 0:00:04] KP-KP. White mates.} Kd6 {[%emt 0:00:03]} 40. h4 {[%emt 0:00:59]} Kc6 {[%emt 0:00:05]} 41. e5 {[%emt 0:30:03]} f5 {[%emt 0:30:03]} 42. e6 {[%emt 0:00:09]} Kd6 {[%emt 0:00:17]} 43. e7 {[%emt 0:00:05]} Kxe7 {[%emt 0:00:03]} 44. Kxc5 {[%emt 0:00:03]} Ke6 {[%emt 0:00:12]} 45. b3 {[%emt 0:01:57] Weighted Error Value: White=0.10 (very precise) /Black=0.48} 1-0

[Event "Prague Festival Open 2022"]
[Site "Prague"]
[Date "2022.06.12"]
[Round "4.10"]
[White "Iniyan, P."]
[Black "Van Dael, Siem"]
[Result "1-0"]
[ECO "E71"]
[WhiteElo "2518"]
[BlackElo "2342"]
[Annotator "TA"]
[PlyCount "63"]
[EventDate "2022.06.10"]
[EventType "swiss"]
[EventCountry "CZE"]
[SourceTitle "playchess.com"]
[Source "ChessBase"]
[SourceQuality "1"]
[TimeControl "40/5400+30:1800+30"]

{[%evp 9,63,35,54,47,45,23,20,18,34,37,42,39,36,30,56,44,59,55,83,55,72,68,66,56,96,78,88,85,96,99,142,156,148,158,253,112,346,329,439,444,426,409,366,271,282,249,777,731,1933,1912,29980,29981,29978,343,29968,3066]} 1. d4 {[%emt 0:05:10]} Nf6 {[%emt 0:06:37]} 2. c4 {[%emt 0:00:36]} g6 {[%emt 0:00:06]} 3. Nc3 {[%emt 0:00:07]} Bg7 {[%emt 0:00:04]} 4. e4 {[%emt 0:00:09]} d6 {[%emt 0:00:06]} 5. h3 {[%emt 0:00:07]} e5 {[%emt 0:02:24]} 6. d5 {[%emt 0:08:12] E71: King's Indian: 4 e4 d6 5 h3.} a5 {[%emt 0:00:33]} 7. Be3 {[%emt 0:02:01]} Na6 {[%emt 0:00:26]} 8. Nf3 {[%emt 0:00:35] The position is equal.} Nc5 {[%emt 0:08:13]} 9. Nd2 {[%emt 0:01:08]} Bd7 {[%emt 0:01:35] [#]} 10. Be2 $146 {[%emt 0:02:33]} ({Predecessor:} 10. b3 O-O 11. a3 Qe8 12. Be2 Kh8 13. O-O Ng8 14. b4 Na4 15. Qc2 Nxc3 16. Qxc3 axb4 17. axb4 {½-½ (51) Machidon,C (2266)-Kamsky,G (2674) Chess.com INT 2020}) 10... h5 {[%emt 0:02:57]} 11. Qc2 {[%emt 0:06:22]} h4 {[%emt 0:02:03]} 12. b3 {[%emt 0:04:30]} Nh5 {[%emt 0:02:25]} 13. Bxh5 {[%emt 0:04:27]} Rxh5 {[%emt 0:00:35]} 14. Rb1 {[%emt 0:09:58]} f5 {[%emt 0:03:27]} 15. a3 {[%emt 0:04:53][%cal Ba2a3,Ba3b4][%mdl 32]} b6 {[%emt 0:05:04]} 16. b4 {[%emt 0:01:12]} axb4 {[%emt 0:01:42]} 17. axb4 {[%emt 0:00:07]} Na4 {[%emt 0:00:18]} 18. f3 $1 {[%emt 0:00:39]} Nxc3 {[%emt 0:01:48]} 19. Qxc3 {[%emt 0:00:13]} Bh6 {[%emt 0:00:37]} 20. Bxh6 {[%emt 0:01:35]} Rxh6 {[%emt 0:00:06]} 21. f4 {[%emt 0:04:01] Prevents Qg5.} fxe4 {[%emt 0:09:38]} (21... Qf6 $16) 22. fxe5 {[%emt 0:01:24]} (22. O-O $1 $18) 22... Bf5 $2 {[%emt 0:01:10] Loses the game.} (22... Qg5 $16) 23. e6 $18 {[%emt 0:07:00] And now Qg7 would win.} Qg5 {[%emt 0:09:25]} 24. O-O $1 {[%emt 0:00:17][%cal Oc3g7] Black must now prevent Qg7!} (24. Qg7 O-O-O 25. Nf1 Kb7 $18) 24... Rh7 {[%emt 0:05:09] Prevents Qg7.} (24... Ra2 $2 25. Qg7 $1 Qe7 26. Qxh6) 25. Rbe1 {[%emt 0:00:12][%cal Bb1e1,Be1e2,Be2e3][%mdl 32]} ({Weaker is} 25. Ra1 Rxa1 26. Qxa1 (26. Rxa1 Bxh3 27. g3 Bf5 $16) 26... Qxd2 $18) 25... Ra2 {[%emt 0:00:50]} 26. Re2 {[%emt 0:09:36]} ({Less strong is} 26. Rf2 Qg3 27. Re3 Qe5 28. Qxe5 dxe5 29. Nxe4 Ra1+ 30. Rf1 Rxf1+ 31. Kxf1 Ke7 $18) 26... Qg3 {[%emt 0:03:22] [#]} 27. Re3 {[%emt 0:00:12] Dancing on a razor blade.} ({Not} 27. Nxe4 Qxc3 28. Nxc3 Rxe2 29. Nxe2 Bd3 $11) 27... Qg5 {[%emt 0:00:58]} (27... Qe5) 28. Rf2 {[%emt 0:06:44]} Ke7 {[%emt 0:06:37]} 29. Nxe4 {[%emt 0:01:56]} Ra1+ {[%emt 0:01:29]} 30. Qxa1 {[%emt 0:00:44]} Qxe3 {[%emt 0:00:08]} 31. Qf6+ {[%emt 0:00:10]} Ke8 {[%emt 0:00:05]} 32. Ng5 {[%emt 0:00:08] Weighted Error Value: White=0.10 (very precise) /Black=0.62} 1-0

[Event "Prague Festival Open 2022"]
[Site "Prague"]
[Date "2022.06.12"]
[Round "4.11"]
[White "Alsina Leal, Daniel"]
[Black "Sorm, Daniel"]
[Result "1/2-1/2"]
[ECO "B90"]
[WhiteElo "2508"]
[BlackElo "2306"]
[Annotator "TA"]
[PlyCount "91"]
[EventDate "2022.06.10"]
[EventType "swiss"]
[EventCountry "CZE"]
[SourceTitle "playchess.com"]
[Source "ChessBase"]
[SourceQuality "1"]
[TimeControl "40/5400+30:1800+30"]

{[%evp 13,91,36,37,16,9,11,14,9,69,74,82,91,82,88,90,60,60,60,60,63,70,67,68,0,0,0,0,0,0,0,0,0,0,0,0,0,0,0,0,0,0,0,0,0,0,0,0,0,8,0,0,0,0,-4,-4,-4,-4,-4,-4,-4,-4,-4,-4,-4,-4,-4,-4,-4,-4,-11,-12,-12,-11,-12,0,-12,0,-12,0,-12]} 1. e4 {[%emt 0:00:03]} c5 {[%emt 0:43:40]} 2. Nf3 {[%emt 0:00:18]} e6 {[%emt 0:00:15]} 3. d4 {[%emt 0:00:14]} cxd4 {[%emt 0:00:05]} 4. Nxd4 {[%emt 0:00:04]} Nc6 {[%emt 0:00:05]} 5. Nc3 {[%emt 0:00:15]} a6 {[%emt 0:00:07]} 6. Be2 {[%emt 0:05:15]} d6 {[%emt 0:03:48]} 7. Be3 {[%emt 0:04:50]} Nf6 {[%emt 0:00:15] 7...Bd7 is vanishing.} 8. g4 {[%emt 0:09:30] B90: Sicilian Najdorf: Unusual White 6th moves, 6 Be3 Ng4 and 6 Be3 e5.} d5 {[%emt 0:02:50]} 9. exd5 {[%emt 0:08:35]} Nxd5 {[%emt 0:00:08]} 10. Nxd5 {[%emt 0:00:11]} exd5 {[%emt 0:06:45]} (10... Qxd5 $11 11. O-O Bd7) 11. Qd2 $14 {[%emt 0:03:10]} Bb4 {[%emt 0:06:06]} 12. c3 {[%emt 0:01:21]} Be7 {[%emt 0:00:05]} 13. O-O-O {[%emt 0:05:48]} O-O {[%emt 0:01:38]} 14. Kb1 {[%emt 0:06:26] [#] White is more active.} Ne5 $146 {[%emt 0:08:57]} ({Predecessor:} 14... Re8 15. f4 Na5 16. b3 Bf8 17. Bf3 b5 18. h4 Rb8 19. Nc2 h5 20. Qg2 Qc7 {0-1 (38) Ageichenko,G (2385)-Tsarev,V Moscow 1988}) 15. Nf5 {[%emt 0:08:08]} Bxf5+ {[%emt 0:00:51]} 16. gxf5 {[%emt 0:00:12]} Nc4 {[%emt 0:00:09]} 17. Bxc4 {[%emt 0:15:40]} dxc4 {[%emt 0:00:12]} 18. Qxd8 {[%emt 0:01:05]} (18. Qd7 $14) 18... Rfxd8 $11 {[%emt 0:02:44] The position is equal.} 19. Bb6 {[%emt 0:01:56]} Rd6 {[%emt 0:00:45]} 20. Rxd6 {[%emt 0:02:54]} Bxd6 {[%emt 0:00:14][%mdl 4096] Endgame KRB-KRB} 21. h3 {[%emt 0:00:14]} Rc8 {[%emt 0:03:57]} 22. Rd1 {[%emt 0:07:33]} Rc6 {[%emt 0:00:15]} 23. Be3 {[%emt 0:00:37][%cal Oe3f4]} Kf8 {[%emt 0:01:56]} 24. Kc2 {[%emt 0:04:14]} Ke7 {[%emt 0:01:15]} 25. Rd5 {[%emt 0:00:06] Inhibits Bc5.} Bc7 {[%emt 0:05:18]} 26. Bc5+ {[%emt 0:08:43]} Bd6 {[%emt 0:02:24]} 27. Bd4 {[%emt 0:00:10]} f6 {[%emt 0:00:42]} 28. b4 {[%emt 0:02:07]} cxb3+ {[%emt 0:00:55]} 29. axb3 {[%emt 0:00:04]} Bc7 {[%emt 0:00:48]} 30. Bc5+ {[%emt 0:01:29]} Ke8 {[%emt 0:01:09]} 31. f3 {[%emt 0:01:25]} Be5 {[%emt 0:02:23]} 32. c4 {[%emt 0:00:33]} g6 {[%emt 0:01:14]} 33. Be3 {[%emt 0:01:58]} Rd6 {[%emt 0:01:08]} 34. fxg6 {[%emt 0:01:43]} hxg6 {[%emt 0:00:10]} 35. Kd3 {[%emt 0:00:36]} Rxd5+ {[%emt 0:02:34]} 36. cxd5 {[%emt 0:00:01] KB-KB} f5 {[%emt 0:00:26]} 37. Kc4 {[%emt 0:00:44]} Bd6 {[%emt 0:00:25]} 38. Bb6 {[%emt 0:00:29]} Kd7 {[%emt 0:01:12]} 39. Kd4 {[%emt 0:00:07]} Ba3 {[%emt 0:00:50]} 40. Kc4 {[%emt 0:01:11]} Be7 {[%emt 0:01:03]} 41. Ba5 {[%emt 0:03:40]} Bg5 {[%emt 0:05:48]} 42. Kd4 $1 {[%emt 0:09:37]} Bf6+ {[%emt 0:00:35]} 43. Kc5 {[%emt 0:00:07]} Be7+ {[%emt 0:00:10]} 44. Kd4 {[%emt 0:00:35]} Bf6+ {[%emt 0:00:06]} 45. Kc4 {[%emt 0:00:07]} Bg5 {[%emt 0:00:06]} 46. Kd4 {[%emt 0:03:18] Weighted Error Value: White=0.04 (flawless) /Black=0.05 (flawless)} 1/2-1/2

[Event "Prague Festival Open 2022"]
[Site "Prague"]
[Date "2022.06.12"]
[Round "4.12"]
[White "Gajic, Mladen"]
[Black "Santiago, Yago De Moura"]
[Result "0-1"]
[ECO "B10"]
[WhiteElo "2321"]
[BlackElo "2498"]
[Annotator "TA"]
[PlyCount "80"]
[EventDate "2022.06.10"]
[EventType "swiss"]
[EventCountry "CZE"]
[SourceTitle "playchess.com"]
[Source "ChessBase"]
[SourceQuality "1"]
[TimeControl "40/5400+30:1800+30"]

{[%evp 9,80,3,12,12,12,12,12,12,16,15,11,0,0,0,2,-10,-6,-9,-8,-10,0,-27,-27,-27,-24,-30,-14,-25,-25,-43,-36,-25,-27,-62,-28,-41,-31,-29,-34,-138,-136,-144,-151,-139,-125,-119,-108,-158,-168,-181,-155,-192,-150,-320,-308,-323,-267,-283,-289,-344,-314,-313,-293,-296,-273,-409,-303,-383,-354,-341,-338,-349,-310]} 1. e4 {[%emt 0:08:01]} c6 {[%emt 0:00:20]} 2. Nf3 {[%emt 0:00:11]} d5 {[%emt 0:00:11]} 3. exd5 {[%emt 0:00:06]} cxd5 {[%emt 0:00:08]} 4. Ne5 {[%emt 0:00:03]} Nf6 {[%emt 0:00:53]} 5. d4 {[%emt 0:00:05]} Bf5 {[%emt 0:00:23]} 6. Bb5+ {[%emt 0:02:30] B10: Caro-Kann: 2 d3 and 2 c4.} Nbd7 {[%emt 0:00:29]} 7. O-O {[%emt 0:01:45]} a6 {[%emt 0:00:28]} 8. Bd3 {[%emt 0:00:19] The position is equal.} Bxd3 {[%emt 0:00:11]} 9. Nxd3 {[%emt 0:06:04]} e6 {[%emt 0:00:13] [#]} 10. Re1 $146 {[%emt 0:07:05]} ({Predecessor:} 10. Bg5 Bd6 11. Nd2 Qc7 12. g3 O-O 13. Qe2 Qxc2 14. Rfc1 Qa4 15. Bxf6 Nxf6 16. Nf3 {½-½ (47) Svidler,P (2723)-Firouzja,A (2749) chess24.com INT 2020}) 10... Bd6 {[%emt 0:01:08]} 11. Nd2 {[%emt 0:09:18]} Qc7 {[%emt 0:02:14]} 12. h3 {[%emt 0:00:54]} O-O {[%emt 0:05:45]} 13. c3 {[%emt 0:01:32]} b5 {[%emt 0:02:03]} 14. Nf3 {[%emt 0:09:22]} Ne4 {[%emt 0:02:19]} 15. Nfe5 {[%emt 0:01:32]} Nxe5 {[%emt 0:00:57]} 16. dxe5 {[%emt 0:01:32]} Be7 {[%emt 0:00:26]} ({Resist} 16... Bxe5 17. Nxe5 Qxe5 18. f3 $16) 17. Be3 {[%emt 0:02:12]} a5 {[%emt 0:05:42]} 18. a3 {[%emt 0:23:42][%cal Ba2a3,Ba3a4][%mdl 32]} Rfc8 {[%emt 0:04:50]} 19. Qg4 {[%emt 0:03:09]} Nc5 {[%emt 0:03:05]} 20. Bxc5 {[%emt 0:05:42]} Bxc5 {[%emt 0:00:24]} 21. a4 {[%emt 0:00:06]} Bf8 {[%emt 0:16:38]} 22. axb5 {[%emt 0:00:46]} Qb7 {[%emt 0:00:58]} 23. Qa4 {[%emt 0:05:43]} Rc4 $36 {[%emt 0:01:19][%mdl 2048] Black has the initiative.} 24. Qb3 {[%emt 0:00:04]} (24. b4 $1 $15) 24... a4 $17 {[%emt 0:00:29]} 25. Qc2 {[%emt 0:02:13]} Qxb5 {[%emt 0:00:17]} 26. Qd2 {[%emt 0:03:49]} Rac8 {[%emt 0:08:34][%cal Oa4a3]} 27. Rec1 {[%emt 0:00:49]} h6 {[%emt 0:01:27] Black is more active.} 28. g3 {[%emt 0:02:02]} (28. Ne1 $142) 28... Rd8 {[%emt 0:02:59] And now ...d4 would win.} 29. Ne1 {[%emt 0:00:58] [#]} d4 $1 {[%emt 0:03:54][%cal Od4c3] Threatens to win with ...dxc3!} 30. Qe2 {[%emt 0:01:53]} Rb8 {[%emt 0:01:51]} 31. Nd3 $2 {[%emt 0:01:05] Now White is beyond hope.} (31. Rcb1 $17) 31... dxc3 $19 {[%emt 0:01:12]} 32. bxc3 {[%emt 0:00:49]} a3 {[%emt 0:00:50] Against Nb2} 33. Rc2 {[%emt 0:00:31]} Rbc8 {[%emt 0:04:31]} 34. Qd2 {[%emt 0:00:39]} Rd8 {[%emt 0:00:53] [#] ...Rc7 is the strong threat.} 35. Qe2 {[%emt 0:00:24]} Rc7 {[%emt 0:03:46]} 36. Nc1 {[%emt 0:00:51]} Qa4 {[%emt 0:01:50]} 37. Raa2 {[%emt 0:00:36]} (37. Na2 {is a better defense.}) 37... Rdc8 {[%emt 0:00:43]} 38. Qd2 {[%emt 0:00:35]} Qa5 {[%emt 0:00:14][%csl LRc3,LRe5]} 39. Ne2 {[%emt 0:00:30]} Qxe5 {[%emt 0:01:46]} 40. Nd4 {[%emt 0:00:29]} Qd5 {[%emt 0:00:35] Weighted Error Value: White=0.24 (precise) /Black=0.11 (very precise)} 0-1